[Event "*** Titled Tuesday 3|2 Blitz"]
[Site "Chess.com"]
[Date "2017.03.07"]
[Round "5"]
[White "P0ubelle"]
[Black "FearlessKing64"]
[Result "1/2-1/2"]
[WhiteElo "2038"]
[BlackElo "2108"]
[TimeControl "180+2"]
[EndTime "14:11:21 PST"]
[Termination "Game drawn by agreement"]

1. e4 {[%clk 0:03:02]} 1... c5 {[%clk 0:03:00.7]} 2. Nf3 {[%clk 0:03:02.5]} 2...
d6 {[%clk 0:03:01.4]} 3. Bb5+ {[%clk 0:03:03]} 3... Nd7 {[%clk 0:03:01.6]} 4.
O-O {[%clk 0:03:02.4]} 4... a6 {[%clk 0:03:02.1]} 5. Bd3 {[%clk 0:03:03.1]} 5...
b5 {[%clk 0:03:02]} 6. c3 {[%clk 0:03:03.9]} 6... Bb7 {[%clk 0:02:55]} 7. Re1
{[%clk 0:03:03.4]} 7... Rc8 {[%clk 0:02:51.1]} 8. Bc2 {[%clk 0:02:53.6]} 8...
Ngf6 {[%clk 0:02:49.3]} 9. d3 {[%clk 0:02:34.8]} 9... g6 {[%clk 0:02:12.6]} 10.
Nbd2 {[%clk 0:02:33.1]} 10... Bg7 {[%clk 0:02:11]} 11. Nf1 {[%clk 0:02:34.1]}
11... O-O {[%clk 0:02:11.6]} 12. Ng3 {[%clk 0:02:35]} 12... Ne5 {[%clk 0:01:59]}
13. Nxe5 {[%clk 0:02:14.4]} 13... dxe5 {[%clk 0:02:00.9]} 14. h4 {[%clk
0:02:04.6]} 14... h5 {[%clk 0:01:47.4]} 15. Bg5 {[%clk 0:01:53.7]} 15... Qd7
{[%clk 0:01:47.9]} 16. Qe2 {[%clk 0:01:52]} 16... Nh7 {[%clk 0:01:38.2]} 17. Be3
{[%clk 0:01:49.9]} 17... Bf6 {[%clk 0:01:32.9]} 18. Rad1 {[%clk 0:01:29.7]}
18... Bxh4 {[%clk 0:01:31.5]} 19. Nxh5 {[%clk 0:01:31]} 19... gxh5 {[%clk
0:01:21.9]} 20. Qxh5 {[%clk 0:01:32.9]} 20... Bf6 {[%clk 0:01:19.5]} 21. g3
{[%clk 0:01:24.3]} 21... Bg7 {[%clk 0:01:15.8]} 22. Kg2 {[%clk 0:01:17.3]} 22...
Nf6 {[%clk 0:01:15.9]} 23. Qh2 {[%clk 0:01:00]} 23... Ng4 {[%clk 0:01:13.2]} 24.
Qh5 {[%clk 0:00:58.8]} 24... Nf6 {[%clk 0:00:48.4]} 25. Qxe5 {[%clk 0:00:48.1]}
25... Nxe4 {[%clk 0:00:45.7]} 26. dxe4 {[%clk 0:00:45.5]} 26... Qxd1 {[%clk
0:00:44.7]} 27. Qxg7+ {[%clk 0:00:44.9]} 27... Kxg7 {[%clk 0:00:45.5]} 28. Rxd1
{[%clk 0:00:43.5]} 28... Rfd8 {[%clk 0:00:42.2]} 29. Rh1 {[%clk 0:00:43.6]}
29... f5 {[%clk 0:00:41.9]} 30. Kf3 {[%clk 0:00:36]} 30... fxe4+ {[%clk
0:00:39.9]} 31. Bxe4 {[%clk 0:00:37.9]} 31... Rf8+ {[%clk 0:00:38.9]} 32. Bf4
{[%clk 0:00:38.7]} 32... e5 {[%clk 0:00:29.1]} 33. Rh7+ {[%clk 0:00:36.6]} 33...
Kg8 {[%clk 0:00:25.1]} 34. Bxb7 {[%clk 0:00:32.9]} 34... Kxh7 {[%clk 0:00:23.9]}
35. Bxc8 {[%clk 0:00:32.9]} 35... exf4 {[%clk 0:00:25]} 36. Bxa6 {[%clk
0:00:32]} 36... fxg3+ {[%clk 0:00:25.4]} 37. Kxg3 {[%clk 0:00:33.6]} 37... b4
{[%clk 0:00:26.9]} 38. cxb4 {[%clk 0:00:34.2]} 38... cxb4 {[%clk 0:00:28.3]} 39.
a3 {[%clk 0:00:29.9]} 39... bxa3 {[%clk 0:00:19.6]} 40. bxa3 {[%clk 0:00:31.8]}
40... Ra8 {[%clk 0:00:20.2]} 41. Bd3+ {[%clk 0:00:32]} 41... Kg7 {[%clk
0:00:21.4]} 42. Kf4 {[%clk 0:00:32.8]} 42... Rxa3 {[%clk 0:00:22.8]} 43. Be4
{[%clk 0:00:34.2]} 43... Kf6 {[%clk 0:00:24.2]} 44. f3 {[%clk 0:00:35.7]} 44...
Ra5 {[%clk 0:00:24.8]} 45. Kg4 {[%clk 0:00:36.6]} 45... Re5 {[%clk 0:00:25]} 46.
Kf4 {[%clk 0:00:37.5]} 46... Re7 {[%clk 0:00:25.7]} 47. Bd5 {[%clk 0:00:38.3]}
47... Ra7 {[%clk 0:00:25.8]} 48. Bc6 {[%clk 0:00:39]} 48... Ra5 {[%clk 0:00:24]}
49. Be4 {[%clk 0:00:40.8]} 49... Ra4 {[%clk 0:00:24.8]} 50. Kg4 {[%clk
0:00:41.2]} 50... Ke5 {[%clk 0:00:26]} 51. Kg3 {[%clk 0:00:41.1]} 51... Ra3
{[%clk 0:00:26.6]} 52. Kg4 {[%clk 0:00:42.4]} 52... Rc3 {[%clk 0:00:27.1]} 53.
Kg3 {[%clk 0:00:43.6]} 53... Rc1 {[%clk 0:00:26]} 54. Kg4 {[%clk 0:00:44.7]}
54... Rg1+ {[%clk 0:00:26.8]} 55. Kh3 {[%clk 0:00:43.1]} 55... Kf4 {[%clk
0:00:27.1]} 56. Kh2 {[%clk 0:00:42.8]} 56... Rg5 {[%clk 0:00:25.6]} 57. Bc6
{[%clk 0:00:43.4]} 57... Ke3 {[%clk 0:00:25.1]} 58. Kh3 {[%clk 0:00:42.1]} 58...
Kf4 {[%clk 0:00:23]} 59. Kh2 {[%clk 0:00:42.8]} 59... Rg3 {[%clk 0:00:24.1]} 60.
Ba8 {[%clk 0:00:42]} 60... Rg7 {[%clk 0:00:22.6]} 61. Be4 {[%clk 0:00:41.5]}
61... Ke3 {[%clk 0:00:23.9]} 62. Kh3 {[%clk 0:00:40.1]} 62... Kf2 {[%clk
0:00:25.4]} 63. Kh4 {[%clk 0:00:41]} 63... Ke3 {[%clk 0:00:24]} 64. Kh5 {[%clk
0:00:42.1]} 64... Kf4 {[%clk 0:00:25.5]} 65. Kh6 {[%clk 0:00:43.1]} 65... Rg5
{[%clk 0:00:26.3]} 66. Kh7 {[%clk 0:00:43.8]} 66... Ke5 {[%clk 0:00:27.3]} 67.
Kh6 {[%clk 0:00:38.6]} 67... Kf6 {[%clk 0:00:28.2]} 68. Bc6 {[%clk 0:00:38]}
68... Rg6+ {[%clk 0:00:26.3]} 69. Kh5 {[%clk 0:00:38.3]} 69... Rg7 {[%clk
0:00:22.2]} 70. Be4 {[%clk 0:00:37.6]} 70... Rg5+ {[%clk 0:00:22]} 71. Kh4
{[%clk 0:00:38]} 71... Re5 {[%clk 0:00:23.5]} 72. Kg3 {[%clk 0:00:38.6]} 72...
Re7 {[%clk 0:00:22.7]} 73. Kf4 {[%clk 0:00:39.7]} 73... Rf7 {[%clk 0:00:23]} 74.
Bd5 {[%clk 0:00:39]} 74... Ra7 {[%clk 0:00:23.1]} 75. Bc6 {[%clk 0:00:38.7]}
75... Ra5 {[%clk 0:00:21.3]} 1/2-1/2

[Event "*** Titled Tuesday 3|2 Blitz"]
[Site "Chess.com"]
[Date "2017.03.07"]
[Round "5"]
[White "GianmarcoVaR"]
[Black "gkchesstiger"]
[Result "1-0"]
[WhiteElo "2428"]
[BlackElo "2655"]
[TimeControl "180+2"]
[EndTime "14:11:53 PST"]
[Termination "GianmarcoVaR won by resignation"]

1. d4 {[%clk 0:03:02]} 1... d5 {[%clk 0:02:59.5]} 2. Nf3 {[%clk 0:03:01.6]} 2...
Nf6 {[%clk 0:02:59.4]} 3. c4 {[%clk 0:03:02.5]} 3... c6 {[%clk 0:03:00]} 4. e3
{[%clk 0:03:02.1]} 4... g6 {[%clk 0:02:59.8]} 5. Nc3 {[%clk 0:03:02.4]} 5... Bg7
{[%clk 0:03:01]} 6. Bd3 {[%clk 0:03:03]} 6... O-O {[%clk 0:03:01.9]} 7. O-O
{[%clk 0:03:03.9]} 7... Bg4 {[%clk 0:03:02.2]} 8. h3 {[%clk 0:03:02.7]} 8...
Bxf3 {[%clk 0:03:02.9]} 9. Qxf3 {[%clk 0:03:04.4]} 9... e6 {[%clk 0:03:04.4]}
10. Rd1 {[%clk 0:03:03.4]} 10... a5 {[%clk 0:03:05.1]} 11. Bd2 {[%clk
0:03:01.2]} 11... Nbd7 {[%clk 0:03:05.8]} 12. Be1 {[%clk 0:03:02.1]} 12... Qb8
{[%clk 0:03:05.8]} 13. Qe2 {[%clk 0:02:58.1]} 13... Rd8 {[%clk 0:03:05.4]} 14.
Qc2 {[%clk 0:02:51.5]} 14... Ne8 {[%clk 0:03:04.7]} 15. Rab1 {[%clk 0:02:44]}
15... Nd6 {[%clk 0:03:04.5]} 16. c5 {[%clk 0:02:23.9]} 16... Nf5 {[%clk
0:03:03.4]} 17. b4 {[%clk 0:02:23.4]} 17... axb4 {[%clk 0:03:03.6]} 18. Rxb4
{[%clk 0:02:24.4]} 18... Qc7 {[%clk 0:02:44.9]} 19. Rdb1 {[%clk 0:02:25]} 19...
Rdb8 {[%clk 0:02:43.7]} 20. Qb3 {[%clk 0:02:01]} 20... Ra7 {[%clk 0:02:44.5]}
21. Rb6 {[%clk 0:01:42.4]} 21... Qc8 {[%clk 0:02:38.3]} 22. Rb4 {[%clk 0:01:36]}
22... e5 {[%clk 0:02:36.8]} 23. Bxf5 {[%clk 0:01:34.1]} 23... gxf5 {[%clk
0:02:38]} 24. Ne2 {[%clk 0:01:21.7]} 24... exd4 {[%clk 0:02:29.3]} 25. exd4
{[%clk 0:01:20.7]} 25... Nf8 {[%clk 0:02:25.6]} 26. a4 {[%clk 0:01:11.3]} 26...
Ne6 {[%clk 0:02:24.5]} 27. Qd3 {[%clk 0:01:08.9]} 27... f4 {[%clk 0:02:14.9]}
28. Bd2 {[%clk 0:01:05.8]} 28... Rba8 {[%clk 0:02:11.9]} 29. Nxf4 {[%clk
0:01:01.9]} 29... Rxa4 {[%clk 0:02:10.9]} 30. Nxe6 {[%clk 0:00:50.1]} 30... Qxe6
{[%clk 0:02:06.8]} 31. Rxa4 {[%clk 0:00:44.7]} 31... Rxa4 {[%clk 0:02:06.8]} 32.
Be3 {[%clk 0:00:45.8]} 32... Qe4 {[%clk 0:01:51.4]} 33. Qxe4 {[%clk 0:00:38.8]}
33... dxe4 {[%clk 0:01:52.5]} 34. Rxb7 {[%clk 0:00:39.6]} 34... Bxd4 {[%clk
0:01:52.7]} 35. Bxd4 {[%clk 0:00:30.6]} 35... Rxd4 {[%clk 0:01:53.1]} 36. Rc7
{[%clk 0:00:32.1]} 36... Kg7 {[%clk 0:01:46.3]} 37. Rxc6 {[%clk 0:00:33]} 37...
Rc4 {[%clk 0:01:47.6]} 38. Rc8 {[%clk 0:00:27.6]} 38... h5 {[%clk 0:01:47.4]}
39. g3 {[%clk 0:00:26.7]} 39... Rc2 {[%clk 0:01:45.3]} 40. Kf1 {[%clk
0:00:20.5]} 40... Kf6 {[%clk 0:01:32.3]} 41. c6 {[%clk 0:00:19.6]} 41... Kf5
{[%clk 0:01:07.5]} 42. c7 {[%clk 0:00:18.1]} 42... Kf6 {[%clk 0:01:04.5]} 43.
Rh8 {[%clk 0:00:12]} 43... Rxc7 {[%clk 0:01:03.5]} 44. Rxh5 {[%clk 0:00:13]}
44... Rc2 {[%clk 0:00:59.6]} 45. g4 {[%clk 0:00:11.6]} 45... Rc3 {[%clk
0:00:57.4]} 46. Kg2 {[%clk 0:00:07.7]} 46... Rf3 {[%clk 0:00:51.9]} 47. Rb5
{[%clk 0:00:07.7]} 47... Ke6 {[%clk 0:00:43.3]} 48. Ra5 {[%clk 0:00:07.1]} 48...
Rc3 {[%clk 0:00:40.4]} 49. Rf5 {[%clk 0:00:06.8]} 49... f6 {[%clk 0:00:40]} 50.
h4 {[%clk 0:00:06.7]} 50... e3 {[%clk 0:00:39.8]} 51. Rf3 {[%clk 0:00:06.1]}
51... Kf7 {[%clk 0:00:28.9]} 52. Rxe3 {[%clk 0:00:07.1]} 52... Rc4 {[%clk
0:00:30.4]} 53. Kg3 {[%clk 0:00:08.4]} 53... Rb4 {[%clk 0:00:31.8]} 54. h5
{[%clk 0:00:09.5]} 54... Rb1 {[%clk 0:00:32]} 55. Ra3 {[%clk 0:00:08.9]} 55...
Rg1+ {[%clk 0:00:32.3]} 56. Kf4 {[%clk 0:00:09.5]} 56... Rb1 {[%clk 0:00:32.8]}
57. Ra7+ {[%clk 0:00:08.4]} 57... Ke6 {[%clk 0:00:33]} 58. Ra6+ {[%clk
0:00:09.6]} 58... Kf7 {[%clk 0:00:33.5]} 59. f3 {[%clk 0:00:10.5]} 59... Rb5
{[%clk 0:00:33.8]} 60. Rc6 {[%clk 0:00:10.3]} 60... Kg7 {[%clk 0:00:34.1]} 61.
Rc7+ {[%clk 0:00:10.5]} 61... Kg8 {[%clk 0:00:34.4]} 62. h6 {[%clk 0:00:08.4]}
62... Ra5 {[%clk 0:00:33.5]} 63. Kg3 {[%clk 0:00:07.7]} 63... Ra3 {[%clk
0:00:31.8]} 64. Rg7+ {[%clk 0:00:07]} 64... Kf8 {[%clk 0:00:32.8]} 65. Rb7
{[%clk 0:00:06.9]} 65... Kg8 {[%clk 0:00:33.7]} 66. Kf4 {[%clk 0:00:05.5]} 66...
Ra5 {[%clk 0:00:34.4]} 67. Ke4 {[%clk 0:00:05.6]} 67... Re5+ {[%clk 0:00:34.6]}
68. Kf4 {[%clk 0:00:06.9]} 68... Ra5 {[%clk 0:00:35.5]} 69. Re7 {[%clk
0:00:07.9]} 69... Rb5 {[%clk 0:00:35.6]} 70. Ke4 {[%clk 0:00:08.4]} 70... Rg5
{[%clk 0:00:32.8]} 71. Rg7+ {[%clk 0:00:07.5]} 71... Rxg7 {[%clk 0:00:33.7]} 72.
hxg7 {[%clk 0:00:09.4]} 72... Kxg7 {[%clk 0:00:35.1]} 73. Kf5 {[%clk 0:00:10.6]}
73... Kf7 {[%clk 0:00:36.5]} 74. f4 {[%clk 0:00:11.7]} 74... Kg7 {[%clk
0:00:37.7]} 75. g5 {[%clk 0:00:12.9]} 75... fxg5 {[%clk 0:00:36.3]} 76. Kxg5
{[%clk 0:00:14.3]} 76... Kg8 {[%clk 0:00:36.8]} 77. Kg6 {[%clk 0:00:15.2]} 77...
Kf8 {[%clk 0:00:37.9]} 78. Kf6 {[%clk 0:00:16.6]} 78... Kg8 {[%clk 0:00:39.2]}
79. Ke7 {[%clk 0:00:17.6]} 79... Kg7 {[%clk 0:00:39.5]} 80. f5 {[%clk
0:00:18.9]} 1-0

[Event "*** Titled Tuesday 3|2 Blitz"]
[Site "Chess.com"]
[Date "2017.03.07"]
[Round "5"]
[White "HaryKane"]
[Black "coalescenet"]
[Result "1-0"]
[WhiteElo "2284"]
[BlackElo "2236"]
[TimeControl "180+2"]
[EndTime "14:11:53 PST"]
[Termination "HaryKane won by checkmate"]

1. e4 {[%clk 0:03:02]} 1... c6 {[%clk 0:03:00.4]} 2. d4 {[%clk 0:03:02.5]} 2...
d5 {[%clk 0:03:02.3]} 3. Nc3 {[%clk 0:03:04.1]} 3... a6 {[%clk 0:02:56.3]} 4.
Nf3 {[%clk 0:03:00.7]} 4... Bg4 {[%clk 0:02:52.8]} 5. exd5 {[%clk 0:02:57.9]}
5... cxd5 {[%clk 0:02:52.1]} 6. h3 {[%clk 0:02:59.2]} 6... Bh5 {[%clk
0:02:50.8]} 7. g4 {[%clk 0:02:55.9]} 7... Bg6 {[%clk 0:02:51.7]} 8. Ne5 {[%clk
0:02:57.4]} 8... Nc6 {[%clk 0:02:43.1]} 9. Nxg6 {[%clk 0:02:54.4]} 9... hxg6
{[%clk 0:02:43.1]} 10. Bg2 {[%clk 0:02:55.9]} 10... e6 {[%clk 0:02:44.4]} 11.
Be3 {[%clk 0:02:45.7]} 11... Bb4 {[%clk 0:02:39.9]} 12. O-O {[%clk 0:02:45.1]}
12... Bxc3 {[%clk 0:02:37.9]} 13. bxc3 {[%clk 0:02:45.1]} 13... Nf6 {[%clk
0:02:39.2]} 14. Rb1 {[%clk 0:02:45.3]} 14... b5 {[%clk 0:02:38]} 15. a4 {[%clk
0:02:46.4]} 15... bxa4 {[%clk 0:02:37.3]} 16. c4 {[%clk 0:02:47.2]} 16... O-O
{[%clk 0:02:26.9]} 17. cxd5 {[%clk 0:02:39.2]} 17... exd5 {[%clk 0:02:26]} 18.
c4 {[%clk 0:02:40.3]} 18... Na5 {[%clk 0:02:20.4]} 19. cxd5 {[%clk 0:02:26.3]}
19... Nb3 {[%clk 0:02:19.1]} 20. Qe2 {[%clk 0:02:17.2]} 20... Nxd5 {[%clk
0:02:13.8]} 21. Qc4 {[%clk 0:02:16.6]} 21... Nb6 {[%clk 0:02:05.4]} 22. Qe2
{[%clk 0:02:06.4]} 22... Nd5 {[%clk 0:01:51.6]} 23. Rb2 {[%clk 0:01:58.3]} 23...
Re8 {[%clk 0:01:44.5]} 24. Qf3 {[%clk 0:01:44.3]} 24... Nb6 {[%clk 0:01:36.9]}
25. d5 {[%clk 0:01:41.4]} 25... Nc4 {[%clk 0:01:36]} 26. Ra2 {[%clk 0:01:36]}
26... Rc8 {[%clk 0:01:31]} 27. Rd1 {[%clk 0:01:22.4]} 27... Qf6 {[%clk
0:01:08.7]} 28. Qxf6 {[%clk 0:01:08.4]} 28... gxf6 {[%clk 0:01:10.6]} 29. d6
{[%clk 0:01:09.4]} 29... Rcd8 {[%clk 0:01:03]} 30. Bf4 {[%clk 0:01:02.2]} 30...
Ne5 {[%clk 0:00:59.7]} 31. Rxa4 {[%clk 0:01:00.1]} 31... Nc5 {[%clk 0:00:55.7]}
32. Ra5 {[%clk 0:00:53.5]} 32... Ncd3 {[%clk 0:00:55.8]} 33. Bxe5 {[%clk
0:00:53]} 33... Nxe5 {[%clk 0:00:53.7]} 34. Rxa6 {[%clk 0:00:53.5]} 34... Re6
{[%clk 0:00:51]} 35. f4 {[%clk 0:00:46.2]} 35... Nc4 {[%clk 0:00:51.8]} 36. f5
{[%clk 0:00:19.4]} 36... Rexd6 {[%clk 0:00:47.7]} 37. Rdxd6 {[%clk 0:00:16.4]}
37... Nxd6 {[%clk 0:00:47.2]} 38. fxg6 {[%clk 0:00:16.4]} 38... fxg6 {[%clk
0:00:49.1]} 39. Kh1 {[%clk 0:00:16.6]} 39... Kg7 {[%clk 0:00:47.4]} 40. Ra7+
{[%clk 0:00:15.8]} 40... Nf7 {[%clk 0:00:48.4]} 41. Kh2 {[%clk 0:00:15.9]} 41...
Rd3 {[%clk 0:00:43.8]} 42. h4 {[%clk 0:00:15.7]} 42... Rd4 {[%clk 0:00:39.8]}
43. Kg3 {[%clk 0:00:16.3]} 43... Rd3+ {[%clk 0:00:35.9]} 44. Kf2 {[%clk
0:00:17]} 44... Rd2+ {[%clk 0:00:36.6]} 45. Kf3 {[%clk 0:00:17.2]} 45... f5
{[%clk 0:00:37.2]} 46. g5 {[%clk 0:00:17.7]} 46... Rd4 {[%clk 0:00:37.8]} 47.
Ke3 {[%clk 0:00:17.6]} 47... Rd8 {[%clk 0:00:34]} 48. Bc6 {[%clk 0:00:15.2]}
48... Kf8 {[%clk 0:00:34.4]} 49. Bb5 {[%clk 0:00:15.5]} 49... Rd6 {[%clk
0:00:34.5]} 50. Bc4 {[%clk 0:00:15.7]} 50... Ne5 {[%clk 0:00:34.6]} 51. Ba2
{[%clk 0:00:15.5]} 51... Ng4+ {[%clk 0:00:33.7]} 52. Kf3 {[%clk 0:00:15.6]}
52... Rd3+ {[%clk 0:00:29.3]} 53. Kf4 {[%clk 0:00:15.7]} 53... Rh3 {[%clk
0:00:27.7]} 54. Rf7+ {[%clk 0:00:16.1]} 54... Ke8 {[%clk 0:00:27.8]} 55. Rh7
{[%clk 0:00:17.3]} 55... Re3 {[%clk 0:00:19.6]} 56. Bf7+ {[%clk 0:00:18.1]}
56... Kf8 {[%clk 0:00:20.8]} 57. Bxg6 {[%clk 0:00:19.5]} 57... Re4+ {[%clk
0:00:19.1]} 58. Kxf5 {[%clk 0:00:20.8]} 58... Ra4 {[%clk 0:00:20.3]} 59. Rf7+
{[%clk 0:00:20.6]} 59... Kg8 {[%clk 0:00:20.3]} 60. Rb7 {[%clk 0:00:21.4]} 60...
Ne3+ {[%clk 0:00:21.2]} 61. Kf6 {[%clk 0:00:22.5]} 61... Nd5+ {[%clk 0:00:22.4]}
62. Ke5 {[%clk 0:00:22.8]} 62... Ne3 {[%clk 0:00:23.3]} 63. Bf7+ {[%clk
0:00:23.9]} 63... Kf8 {[%clk 0:00:23.6]} 64. Be6 {[%clk 0:00:24.3]} 64... Rxh4
{[%clk 0:00:24.2]} 65. Kf6 {[%clk 0:00:25.3]} 65... Rf4+ {[%clk 0:00:25.6]} 66.
Kg6 {[%clk 0:00:26.6]} 66... Ra4 {[%clk 0:00:26.9]} 67. Kf6 {[%clk 0:00:26.5]}
67... Rf4+ {[%clk 0:00:28.4]} 68. Kg6 {[%clk 0:00:27.8]} 68... Re4 {[%clk
0:00:29.8]} 69. Ba2 {[%clk 0:00:28.4]} 69... Ra4 {[%clk 0:00:30.4]} 70. Be6
{[%clk 0:00:28.4]} 70... Ra6 {[%clk 0:00:29.8]} 71. Kf6 {[%clk 0:00:28.4]} 71...
Ng4+ {[%clk 0:00:28.5]} 72. Kf5 {[%clk 0:00:28.5]} 72... Ne3+ {[%clk 0:00:29.9]}
73. Ke5 {[%clk 0:00:29.4]} 73... Ra5+ {[%clk 0:00:30.1]} 74. Kf6 {[%clk
0:00:29.9]} 74... Nd5+ {[%clk 0:00:31.5]} 75. Bxd5 {[%clk 0:00:30.4]} 75... Rxd5
{[%clk 0:00:32]} 76. Rb8+ {[%clk 0:00:31.6]} 76... Rd8 {[%clk 0:00:33.9]} 77.
Rxd8# {[%clk 0:00:30]} 1-0

[Event "*** Titled Tuesday 3|2 Blitz"]
[Site "Chess.com"]
[Date "2017.03.07"]
[Round "5"]
[White "pKiLz5Rn9b"]
[Black "1e41-0"]
[Result "1-0"]
[WhiteElo "2549"]
[BlackElo "2337"]
[TimeControl "180+2"]
[EndTime "14:11:55 PST"]
[Termination "pKiLz5Rn9b won by checkmate"]

1. e4 {[%clk 0:03:02]} 1... e6 {[%clk 0:03:00.3]} 2. g3 {[%clk 0:03:02]} 2... d5
{[%clk 0:03:01]} 3. Bg2 {[%clk 0:03:03.5]} 3... dxe4 {[%clk 0:03:00.2]} 4. Nc3
{[%clk 0:03:04.3]} 4... Nf6 {[%clk 0:02:59.3]} 5. Nxe4 {[%clk 0:03:05.1]} 5...
Nxe4 {[%clk 0:03:00.2]} 6. Bxe4 {[%clk 0:03:07]} 6... Nd7 {[%clk 0:03:01.2]} 7.
Bg2 {[%clk 0:03:07.1]} 7... Nf6 {[%clk 0:03:01.9]} 8. d4 {[%clk 0:03:08.2]} 8...
Be7 {[%clk 0:03:01.3]} 9. Nf3 {[%clk 0:03:08.7]} 9... O-O {[%clk 0:03:02.7]} 10.
O-O {[%clk 0:03:09.8]} 10... c5 {[%clk 0:03:03]} 11. c3 {[%clk 0:03:05.6]} 11...
cxd4 {[%clk 0:02:56.6]} 12. Nxd4 {[%clk 0:03:06.5]} 12... e5 {[%clk 0:02:55.6]}
13. Nb3 {[%clk 0:03:07.1]} 13... Qc7 {[%clk 0:02:54.9]} 14. Re1 {[%clk
0:03:05.6]} 14... Be6 {[%clk 0:02:47.8]} 15. Qe2 {[%clk 0:02:59.8]} 15... Bd6
{[%clk 0:02:41.6]} 16. Bg5 {[%clk 0:02:58.4]} 16... Nd7 {[%clk 0:02:37.1]} 17.
Rad1 {[%clk 0:02:59.2]} 17... Rfe8 {[%clk 0:02:36.9]} 18. Be3 {[%clk 0:02:57.9]}
18... Rad8 {[%clk 0:02:34]} 19. Qb5 {[%clk 0:02:54.5]} 19... Nb6 {[%clk
0:02:30.6]} 20. Na5 {[%clk 0:02:49.5]} 20... Bd7 {[%clk 0:02:24.4]} 21. Qe2
{[%clk 0:02:32.4]} 21... Bc8 {[%clk 0:02:08.1]} 22. Qb5 {[%clk 0:02:16.6]} 22...
Bd7 {[%clk 0:02:06.4]} 23. Qf1 {[%clk 0:02:14.8]} 23... Bc8 {[%clk 0:01:48]} 24.
Bh3 {[%clk 0:02:14.9]} 24... Bxh3 {[%clk 0:01:45.1]} 25. Qxh3 {[%clk 0:02:15.8]}
25... Nc4 {[%clk 0:01:44.3]} 26. Nxc4 {[%clk 0:02:14.8]} 26... Qxc4 {[%clk
0:01:46.2]} 27. Qg2 {[%clk 0:02:14]} 27... Qa6 {[%clk 0:01:43.6]} 28. Qd5 {[%clk
0:02:11.8]} 28... Bc7 {[%clk 0:01:38.8]} 29. Qb3 {[%clk 0:02:12.6]} 29... Qc6
{[%clk 0:01:33.5]} 30. a4 {[%clk 0:02:10.3]} 30... a6 {[%clk 0:01:31.2]} 31. Qb4
{[%clk 0:02:06]} 31... Qf3 {[%clk 0:01:25.9]} 32. Rxd8 {[%clk 0:02:04.7]} 32...
Rxd8 {[%clk 0:01:26.5]} 33. Qc5 {[%clk 0:02:03.3]} 33... Rd1 {[%clk 0:01:07.4]}
34. Rxd1 {[%clk 0:02:00.8]} 34... Qxd1+ {[%clk 0:01:09.3]} 35. Kg2 {[%clk
0:02:02.1]} 35... e4 {[%clk 0:01:10.6]} 36. Qf5 {[%clk 0:02:02.6]} 36... g6
{[%clk 0:00:46.3]} 37. Qxe4 {[%clk 0:01:59.1]} 37... Bd8 {[%clk 0:00:45.1]} 38.
Bd4 {[%clk 0:01:56.2]} 38... Kf8 {[%clk 0:00:44.5]} 39. Qe5 {[%clk 0:01:47.3]}
39... Qd3 {[%clk 0:00:31.5]} 40. Qh8+ {[%clk 0:01:42.6]} 40... Ke7 {[%clk
0:00:31.8]} 41. Bf6+ {[%clk 0:01:43.5]} 41... Ke6 {[%clk 0:00:31.6]} 42. Qxd8
{[%clk 0:01:39.4]} 42... Qe4+ {[%clk 0:00:32.6]} 43. Kf1 {[%clk 0:01:39.7]}
43... Qb1+ {[%clk 0:00:23.1]} 44. Ke2 {[%clk 0:01:39.5]} 44... Qc2+ {[%clk
0:00:22.2]} 45. Qd2 {[%clk 0:01:37.2]} 45... Qxa4 {[%clk 0:00:18.6]} 46. Bd4
{[%clk 0:01:35.4]} 46... Qb5+ {[%clk 0:00:18.3]} 47. Ke1 {[%clk 0:01:35.5]}
47... Qd5 {[%clk 0:00:18.3]} 48. Qe3+ {[%clk 0:01:36.2]} 48... Kd7 {[%clk
0:00:19.5]} 49. Kd2 {[%clk 0:01:35]} 49... b5 {[%clk 0:00:18.7]} 50. Qe5 {[%clk
0:01:32.8]} 50... Qb3 {[%clk 0:00:19.1]} 51. Kc1 {[%clk 0:01:29.2]} 51... b4
{[%clk 0:00:19.4]} 52. Qa5 {[%clk 0:01:15.8]} 52... bxc3 {[%clk 0:00:17.3]} 53.
Bxc3 {[%clk 0:01:16]} 53... Qc4 {[%clk 0:00:17.3]} 54. Qb6 {[%clk 0:01:12.7]}
54... Qf1+ {[%clk 0:00:17.3]} 55. Kc2 {[%clk 0:01:13.7]} 55... Qe2+ {[%clk
0:00:18.5]} 56. Kc1 {[%clk 0:01:06.6]} 56... Qf1+ {[%clk 0:00:16.6]} 57. Kd2
{[%clk 0:01:07.9]} 57... Qg2 {[%clk 0:00:13.9]} 58. h4 {[%clk 0:01:07.9]} 58...
Ke8 {[%clk 0:00:13.6]} 59. Qxa6 {[%clk 0:01:05.3]} 59... Qd5+ {[%clk 0:00:13.8]}
60. Qd3 {[%clk 0:01:05.9]} 60... Qg2 {[%clk 0:00:15.5]} 61. b4 {[%clk
0:01:05.2]} 61... Kf8 {[%clk 0:00:14.3]} 62. Bd4 {[%clk 0:01:01]} 62... Ke8
{[%clk 0:00:14.3]} 63. b5 {[%clk 0:01:00.9]} 63... Qd5 {[%clk 0:00:10.7]} 64. b6
{[%clk 0:01:01.9]} 64... Qa2+ {[%clk 0:00:11.6]} 65. Qc2 {[%clk 0:01:02.9]}
65... Qd5 {[%clk 0:00:13]} 66. Qc5 {[%clk 0:00:58.7]} 66... Qa2+ {[%clk
0:00:13.2]} 67. Ke3 {[%clk 0:01:00.2]} 67... Qb3+ {[%clk 0:00:14.2]} 68. Bc3
{[%clk 0:01:00]} 68... Qd1 {[%clk 0:00:12.4]} 69. Qe5+ {[%clk 0:00:54.9]} 69...
Kd7 {[%clk 0:00:13.1]} 70. Qc7+ {[%clk 0:00:55.1]} 70... Ke8 {[%clk 0:00:11.9]}
71. Qc8+ {[%clk 0:00:53.8]} 71... Ke7 {[%clk 0:00:12.1]} 72. Bb4+ {[%clk
0:00:48.8]} 72... Kf6 {[%clk 0:00:11.3]} 73. Qc6+ {[%clk 0:00:45.4]} 73... Kg7
{[%clk 0:00:11.6]} 74. Bc3+ {[%clk 0:00:46.1]} 74... Kh6 {[%clk 0:00:12.6]} 75.
b7 {[%clk 0:00:43.8]} 75... Qc1+ {[%clk 0:00:11.6]} 76. Kd3 {[%clk 0:00:42.1]}
76... Qf1+ {[%clk 0:00:11.7]} 77. Kc2 {[%clk 0:00:41.5]} 77... Qxf2+ {[%clk
0:00:06.1]} 78. Bd2+ {[%clk 0:00:42.4]} 78... Kh5 {[%clk 0:00:07.8]} 79. b8=Q
{[%clk 0:00:42]} 79... Qf5+ {[%clk 0:00:09.7]} 80. Kb2 {[%clk 0:00:41.7]} 80...
Qd3 {[%clk 0:00:09]} 81. g4+ {[%clk 0:00:41.3]} 81... Kxg4 {[%clk 0:00:09.6]}
82. Qf4+ {[%clk 0:00:41.9]} 82... Kh3 {[%clk 0:00:11.5]} 83. Qh1# {[%clk
0:00:42]} 1-0